Department Family ,Entity, Date,Expense Type,Expense Area,Supplier,Transaction Number, Amount ,Distribution Line Number
DCMS,ODA,03-Jun-2013,Grant Payable,TFL Gamestime Operations,Transport For London,80913," 7,418,581.21 ",1
DCMS,ODA,03-Jun-2013,Consultants,SBH Site wide  Network Rail  Interface,Network Rail Infrastructure,81004," 38,640.00 ",1
DCMS,ODA,03-Jun-2013,VAT - Irrecoverable,Current Liabilities under 1 Year - VAT Control,Network Rail Infrastructure,81004," 7,728.00 ",2
DCMS,ODA,03-Jun-2013,Tier 1 Contractors,LDA Costs,BAM Nuttall Ltd,81613," 512,916.00 ",1
DCMS,ODA,03-Jun-2013,Tier 1 Contractors,LDA Costs,BAM Nuttall Ltd,81613," (512,916.00)",2
DCMS,ODA,03-Jun-2013,Tier 1 Contractors,LDA Costs,BAM Nuttall Ltd,81613," 512,619.00 ",3
DCMS,ODA,03-Jun-2013,VAT - Irrecoverable,Current Liabilities under 1 Year - VAT Control,BAM Nuttall Ltd,81613," 102,523.80 ",5
DCMS,ODA,06-Jun-2013,Tier 1 Contractors,Village Infra Retrofit - LL procured services,Lend Lease Europe Ltd,81595," 25,201.93 ",1
DCMS,ODA,06-Jun-2013,Tier 1 Contractors,Village Infra Retrofit - LL procured services,Lend Lease Europe Ltd,81595," 1,809.78 ",2
DCMS,ODA,06-Jun-2013,VAT - Irrecoverable,Current Liabilities under 1 Year - VAT Control,Lend Lease Europe Ltd,81595, 361.96 ,4
DCMS,ODA,06-Jun-2013,Tier 1 Contractors,Village Infra Retrofit - LL procured services,Lend Lease Europe Ltd,81606," 840,064.29 ",1
DCMS,ODA,06-Jun-2013,Tier 1 Contractors,Village Infra Retrofit - LL procured services,Lend Lease Europe Ltd,81606," 60,326.16 ",2
DCMS,ODA,06-Jun-2013,VAT - Irrecoverable,Current Liabilities under 1 Year - VAT Control,Lend Lease Europe Ltd,81606," 12,065.23 ",4
DCMS,ODA,06-Jun-2013,Tier 1 Contractors,Village Vertical Development,Lend Lease Europe Ltd,81607," 486,521.72 ",1
DCMS,ODA,06-Jun-2013,Tier 1 Contractors,Village Vertical Development,Lend Lease Europe Ltd,81607," 9,929.01 ",2
DCMS,ODA,06-Jun-2013,VAT - Irrecoverable,Current Liabilities under 1 Year - VAT Control,Lend Lease Europe Ltd,81607," 1,985.80 ",4
DCMS,ODA,06-Jun-2013,Tier 1 Contractors,Village Vertical Development,Lend Lease Europe Ltd,81608," 60,197.00 ",1
DCMS,ODA,06-Jun-2013,VAT - Irrecoverable,Current Liabilities under 1 Year - VAT Control,Lend Lease Europe Ltd,81608," 12,039.40 ",2
DCMS,ODA,06-Jun-2013,Tier 1 Contractors,Village Retrofit - LL Procured Services,Lend Lease Europe Ltd,81616," 545,432.12 ",1
DCMS,ODA,06-Jun-2013,Tier 1 Contractors,Village Retrofit - LL Procured Services,Lend Lease Europe Ltd,81616," 11,131.27 ",2
DCMS,ODA,06-Jun-2013,VAT - Irrecoverable,Current Liabilities under 1 Year - VAT Control,Lend Lease Europe Ltd,81616," 2,226.25 ",4
DCMS,ODA,06-Jun-2013,Tier 1 Contractors,Community Projects Retrofit - Academy procured services,Lend Lease Europe Ltd,81618," 33,273.50 ",1
DCMS,ODA,06-Jun-2013,VAT - Irrecoverable,Current Liabilities under 1 Year - VAT Control,Lend Lease Europe Ltd,81618," 6,654.70 ",2
DCMS,ODA,10-Jun-2013,Tier 1 Contractors,Eton Manor Tennis,London Legacy Development Corporation,81533," 28,648.00 ",1
DCMS,ODA,10-Jun-2013,VAT - Irrecoverable,Current Liabilities under 1 Year - VAT Control,London Legacy Development Corporation,81533," 5,729.60 ",2
DCMS,ODA,10-Jun-2013,Delivery partner CLM,Programme Management & Integration,CLM Delivery Partner Ltd,81609," 150,642.35 ",1
DCMS,ODA,10-Jun-2013,VAT - Irrecoverable,Current Liabilities under 1 Year - VAT Control,CLM Delivery Partner Ltd,81609," 30,128.47 ",2
DCMS,ODA,10-Jun-2013,Holding Cost Payments,Triathlon Holding Costs Payment,Triathlon Homes LLP,81612," 1,353,048.60 ",1
DCMS,ODA,10-Jun-2013,Seconded Staff,Village Retrofit - Management & Admin,Huntsmoor Associates Limited,81645," 35,900.00 ",1
DCMS,ODA,10-Jun-2013,VAT - Irrecoverable,Current Liabilities under 1 Year - VAT Control,Huntsmoor Associates Limited,81645," 7,180.00 ",2
DCMS,ODA,10-Jun-2013,Construction contractor,FCOP Waterpolo,ES Global Overlay Limited,81662," 22,489.87 ",1
DCMS,ODA,10-Jun-2013,Construction contractor,FCOP Waterpolo,ES Global Overlay Limited,81662," 3,814.08 ",2
DCMS,ODA,10-Jun-2013,VAT - Irrecoverable,Current Liabilities under 1 Year - VAT Control,ES Global Overlay Limited,81662," 5,260.79 ",3
DCMS,ODA,17-Jun-2013,Tier 1 Contractors,Village Vertical Development,Lend Lease Europe Ltd,3012," (824,166.52)",1
DCMS,ODA,17-Jun-2013,Tier 1 Contractors,Village Vertical Development,Lend Lease Europe Ltd,3012," (16,819.72)",2
DCMS,ODA,17-Jun-2013,VAT - Irrecoverable,Current Liabilities under 1 Year - VAT Control,Lend Lease Europe Ltd,3012," (3,363.94)",4
DCMS,ODA,17-Jun-2013,Seconded Staff,Village Retrofit - Management & Admin,Mace Limited,81631," 135,783.00 ",1
DCMS,ODA,17-Jun-2013,VAT - Irrecoverable,Current Liabilities under 1 Year - VAT Control,Mace Limited,81631," 27,156.60 ",2
DCMS,ODA,17-Jun-2013,Tier 1 Contractors,Village Retrofit - LL Procured Services,Lend Lease Europe Ltd,81643," 72,981.13 ",1
DCMS,ODA,17-Jun-2013,Tier 1 Contractors,Village Retrofit - LL Procured Services,Lend Lease Europe Ltd,81643," 1,489.41 ",2
DCMS,ODA,17-Jun-2013,VAT - Irrecoverable,Current Liabilities under 1 Year - VAT Control,Lend Lease Europe Ltd,81643, 297.88 ,4
DCMS,ODA,17-Jun-2013,Framework consultancy,Finance & Corporate Services,Turner & Townsend Ltd,81656," 82,301.62 ",1
DCMS,ODA,17-Jun-2013,VAT - Irrecoverable,Current Liabilities under 1 Year - VAT Control,Turner & Townsend Ltd,81656," 16,460.32 ",2
DCMS,ODA,17-Jun-2013,Tier 1 Contractors,Village Vertical Development,Lend Lease Europe Ltd,81663," 55,550.56 ",1
DCMS,ODA,17-Jun-2013,Tier 1 Contractors,Village Vertical Development,Lend Lease Europe Ltd,81663," 1,133.68 ",2
DCMS,ODA,17-Jun-2013,VAT - Irrecoverable,Current Liabilities under 1 Year - VAT Control,Lend Lease Europe Ltd,81663, 226.74 ,4
DCMS,ODA,17-Jun-2013,Tier 1 Contractors,Village Vertical Development,Lend Lease Europe Ltd,81663," (55,550.56)",5
DCMS,ODA,17-Jun-2013,Tier 1 Contractors,Village Vertical Development,Lend Lease Europe Ltd,81663," (1,133.68)",6
DCMS,ODA,17-Jun-2013,Tier 1 Contractors,Village Vertical Development,Lend Lease Europe Ltd,81663," 3,686.41 ",7
DCMS,ODA,17-Jun-2013,Tier 1 Contractors,Village Vertical Development,Lend Lease Europe Ltd,81663," 51,864.15 ",8
DCMS,ODA,17-Jun-2013,Tier 1 Contractors,Village Vertical Development,Lend Lease Europe Ltd,81663, 75.23 ,9
DCMS,ODA,17-Jun-2013,Tier 1 Contractors,Village Vertical Development,Lend Lease Europe Ltd,81663," 1,058.45 ",10
DCMS,ODA,17-Jun-2013,Tier 1 Contractors,Zones 2-7 Infrastructure,Lend Lease Europe Ltd,81665," 40,679.73 ",1
DCMS,ODA,17-Jun-2013,Tier 1 Contractors,Zones 2-7 Infrastructure,Lend Lease Europe Ltd,81665," 2,921.27 ",2
DCMS,ODA,17-Jun-2013,VAT - Irrecoverable,Current Liabilities under 1 Year - VAT Control,Lend Lease Europe Ltd,81665, 584.25 ,4
DCMS,ODA,17-Jun-2013,Tier 1 Contractors,Academy Building,Lend Lease Europe Ltd,81666," 39,729.00 ",1
DCMS,ODA,17-Jun-2013,VAT - Irrecoverable,Current Liabilities under 1 Year - VAT Control,Lend Lease Europe Ltd,81666," 7,945.80 ",2
DCMS,ODA,17-Jun-2013,Tier 1 Contractors,Village Vertical Development,Lend Lease Europe Ltd,81667," 375,325.25 ",1
DCMS,ODA,17-Jun-2013,Tier 1 Contractors,Village Vertical Development,Lend Lease Europe Ltd,81667," 7,659.70 ",2
DCMS,ODA,17-Jun-2013,VAT - Irrecoverable,Current Liabilities under 1 Year - VAT Control,Lend Lease Europe Ltd,81667," 1,531.94 ",4
DCMS,ODA,17-Jun-2013,Tier 1 Contractors,Village Vertical Development,Lend Lease Europe Ltd,81668," 359,196.86 ",1
DCMS,ODA,17-Jun-2013,Tier 1 Contractors,Village Vertical Development,Lend Lease Europe Ltd,81668," 7,330.55 ",2
DCMS,ODA,17-Jun-2013,VAT - Irrecoverable,Current Liabilities under 1 Year - VAT Control,Lend Lease Europe Ltd,81668," 1,466.11 ",4
DCMS,ODA,17-Jun-2013,Grant Payable,Eton College & DLT Costs,Dorney Lake Trust,81705," 25,000.00 ",1
DCMS,ODA,17-Jun-2013,VAT - Irrecoverable,Current Liabilities under 1 Year - VAT Control,Dorney Lake Trust,81705," 5,000.00 ",2
DCMS,ODA,17-Jun-2013,Tier 1 Contractors,Village Retrofit - LL Procured Services,Lend Lease Europe Ltd,81706," 70,764.90 ",1
DCMS,ODA,17-Jun-2013,Tier 1 Contractors,Village Retrofit - LL Procured Services,Lend Lease Europe Ltd,81706," 1,444.18 ",2
DCMS,ODA,17-Jun-2013,VAT - Irrecoverable,Current Liabilities under 1 Year - VAT Control,Lend Lease Europe Ltd,81706, 288.84 ,4
DCMS,ODA,17-Jun-2013,Tier 1 Contractors,Village Retrofit - LL Procured Services,Lend Lease Europe Ltd,81707," 54,660.72 ",1
DCMS,ODA,17-Jun-2013,Tier 1 Contractors,Village Retrofit - LL Procured Services,Lend Lease Europe Ltd,81707," 1,115.52 ",2
DCMS,ODA,17-Jun-2013,VAT - Irrecoverable,Current Liabilities under 1 Year - VAT Control,Lend Lease Europe Ltd,81707, 223.10 ,4
DCMS,ODA,17-Jun-2013,Tier 1 Contractors,Community Projects Retrofit - Academy procured services,Lend Lease Europe Ltd,81708," 28,601.12 ",1
DCMS,ODA,17-Jun-2013,Tier 1 Contractors,Community Projects Retrofit - Academy procured services,Lend Lease Europe Ltd,81708," 22,053.89 ",2
DCMS,ODA,17-Jun-2013,VAT - Irrecoverable,Current Liabilities under 1 Year - VAT Control,Lend Lease Europe Ltd,81708," 4,410.78 ",4
DCMS,ODA,17-Jun-2013,Tier 1 Contractors,Community Projects Retrofit - Academy procured services,Lend Lease Europe Ltd,81708," (22,053.89)",5
DCMS,ODA,17-Jun-2013,Tier 1 Contractors,Community Projects Retrofit - Academy procured services,Lend Lease Europe Ltd,81708," 2,053.89 ",6
DCMS,ODA,17-Jun-2013,VAT - Irrecoverable,Current Liabilities under 1 Year - VAT Control,Lend Lease Europe Ltd,81708," (4,000.00)",7
DCMS,ODA,17-Jun-2013,Tier 1 Contractors,Village Retrofit - LL Procured Services,Lend Lease Europe Ltd,81712," 1,085,013.59 ",1
DCMS,ODA,17-Jun-2013,Tier 1 Contractors,Village Retrofit - LL Procured Services,Lend Lease Europe Ltd,81712," 22,143.13 ",2
DCMS,ODA,17-Jun-2013,VAT - Irrecoverable,Current Liabilities under 1 Year - VAT Control,Lend Lease Europe Ltd,81712," 4,428.63 ",4
DCMS,ODA,17-Jun-2013,Tier 1 Contractors,Village Infra Retrofit - LL procured services,Lend Lease Europe Ltd,81713," 77,833.57 ",1
DCMS,ODA,17-Jun-2013,Tier 1 Contractors,Village Infra Retrofit - LL procured services,Lend Lease Europe Ltd,81713," 5,589.33 ",2
DCMS,ODA,17-Jun-2013,VAT - Irrecoverable,Current Liabilities under 1 Year - VAT Control,Lend Lease Europe Ltd,81713," 1,117.87 ",4
DCMS,ODA,17-Jun-2013,Tier 1 Contractors,Athletes' Village Operate and Maintain Base Service,Lend Lease Europe Ltd,81715," 23,324.00 ",1
DCMS,ODA,17-Jun-2013,VAT - Irrecoverable,Current Liabilities under 1 Year - VAT Control,Lend Lease Europe Ltd,81715," 4,664.80 ",2
DCMS,ODA,17-Jun-2013,Tier 1 Contractors,Athletes' Village Operate and Maintain Base Service,Lend Lease Europe Ltd,81716," 363,099.00 ",1
DCMS,ODA,17-Jun-2013,Tier 1 Contractors,Athletes' Village Operate and Maintain Base Service,Lend Lease Europe Ltd,81716," 72,619.80 ",2
DCMS,ODA,17-Jun-2013,Tier 1 Contractors,Athletes' Village Operate and Maintain Base Service,Lend Lease Europe Ltd,81716," (363,099.00)",3
DCMS,ODA,17-Jun-2013,Tier 1 Contractors,Athletes' Village Operate and Maintain Base Service,Lend Lease Europe Ltd,81716," 355,837.02 ",4
DCMS,ODA,17-Jun-2013,Tier 1 Contractors,Athletes' Village Operate and Maintain Base Service,Lend Lease Europe Ltd,81716," 7,261.98 ",5
DCMS,ODA,17-Jun-2013,Tier 1 Contractors,Athletes' Village Operate and Maintain Base Service,Lend Lease Europe Ltd,81716," (72,619.80)",7
DCMS,ODA,17-Jun-2013,VAT - Irrecoverable,Current Liabilities under 1 Year - VAT Control,Lend Lease Europe Ltd,81716," 1,452.40 ",8
DCMS,ODA,17-Jun-2013,Framework consultancy,Finance & Corporate Services,Ernst & Young LLP,81720," 34,200.00 ",1
DCMS,ODA,17-Jun-2013,VAT - Irrecoverable,Current Liabilities under 1 Year - VAT Control,Ernst & Young LLP,81720," 6,840.00 ",2
DCMS,ODA,24-Jun-2013,Consultants,SBH Site wide  Network Rail  Interface,Network Rail Infrastructure,80962," 47,482.40 ",1
DCMS,ODA,24-Jun-2013,VAT - Irrecoverable,Current Liabilities under 1 Year - VAT Control,Network Rail Infrastructure,80962," 9,496.48 ",2
DCMS,ODA,24-Jun-2013,Consultants,Village Retrofit - Management & Admin,Ove Arup & Partners Limited,81545," 35,860.48 ",1
DCMS,ODA,24-Jun-2013,VAT - Irrecoverable,Current Liabilities under 1 Year - VAT Control,Ove Arup & Partners Limited,81545," 7,172.10 ",2
DCMS,ODA,24-Jun-2013,IT Managed Services,Application Maintenance and Support,Atos IT Services UK Ltd,81640," 81,926.33 ",1
DCMS,ODA,24-Jun-2013,VAT - Irrecoverable,Current Liabilities under 1 Year - VAT Control,Atos IT Services UK Ltd,81640," 16,385.27 ",2
DCMS,ODA,24-Jun-2013,IT Managed Services,Service Desk/Support/Hosting/AMS,Atos IT Services UK Ltd,81641," 445,793.00 ",1
DCMS,ODA,24-Jun-2013,VAT - Irrecoverable,Current Liabilities under 1 Year - VAT Control,Atos IT Services UK Ltd,81641," 89,158.60 ",2
DCMS,ODA,24-Jun-2013,IT Managed Services,Service Desk/Support/Hosting/AMS,Atos IT Services UK Ltd,81641, 0.01 ,3
DCMS,ODA,24-Jun-2013,Tier 1 Contractors,MPC / IBC,London Legacy Development Corporation,81693," 20,872.56 ",1
DCMS,ODA,24-Jun-2013,VAT - Irrecoverable,Current Liabilities under 1 Year - VAT Control,London Legacy Development Corporation,81693," 4,174.52 ",2
DCMS,ODA,24-Jun-2013,Service Charges,Facilities Management,DTZ Debenham Tie Leung Ltd,81756," 113,917.50 ",1
DCMS,ODA,24-Jun-2013,Service Charges,Facilities Management,DTZ Debenham Tie Leung Ltd,81756," 2,655.63 ",3
DCMS,ODA,24-Jun-2013,Service Charges,Facilities Management,DTZ Debenham Tie Leung Ltd,81756," 47,465.63 ",4
DCMS,ODA,24-Jun-2013,VAT - Irrecoverable,Current Liabilities under 1 Year - VAT Control,DTZ Debenham Tie Leung Ltd,81756, 531.13 ,6
DCMS,ODA,24-Jun-2013,Service Charges,Facilities Management,DTZ Debenham Tie Leung Ltd,81756," (113,917.50)",7
DCMS,ODA,24-Jun-2013,Service Charges,Facilities Management,DTZ Debenham Tie Leung Ltd,81756," (47,465.63)",8
DCMS,ODA,24-Jun-2013,Service Charges,Facilities Management,DTZ Debenham Tie Leung Ltd,81756," (2,655.63)",9
DCMS,ODA,24-Jun-2013,Rent Payable,Facilities Management,DTZ Debenham Tie Leung Ltd,81756," 113,917.50 ",10
DCMS,ODA,24-Jun-2013,Rent Payable,Facilities Management,DTZ Debenham Tie Leung Ltd,81756," 2,655.63 ",11
DCMS,ODA,24-Jun-2013,Rent Payable,Facilities Management,DTZ Debenham Tie Leung Ltd,81756," 47,465.63 ",12
DCMS,ODA,24-Jun-2013,Tier 1 Contractors,Village Vertical Development,Lend Lease Europe Ltd,81765," 96,959.13 ",1
DCMS,ODA,24-Jun-2013,Tier 1 Contractors,Village Vertical Development,Lend Lease Europe Ltd,81765," 1,978.76 ",2
DCMS,ODA,24-Jun-2013,VAT - Irrecoverable,Current Liabilities under 1 Year - VAT Control,Lend Lease Europe Ltd,81765, 395.75 ,4
DCMS,ODA,24-Jun-2013,Delivery partner CLM,Programme Management & Integration,CLM Delivery Partner Ltd,81767," 43,338.48 ",1
DCMS,ODA,24-Jun-2013,Delivery partner CLM,Programme Management & Integration,CLM Delivery Partner Ltd,81767," 36,085.25 ",2
DCMS,ODA,24-Jun-2013,VAT - Irrecoverable,Current Liabilities under 1 Year - VAT Control,CLM Delivery Partner Ltd,81767," 15,884.74 ",3
DCMS,ODA,25-Jun-2013,Tier 1 Contractors,Village Retrofit - LL Procured Services,Lend Lease Europe Ltd,81798," 30,294.10 ",1
DCMS,ODA,25-Jun-2013,VAT - Irrecoverable,Current Liabilities under 1 Year - VAT Control,Lend Lease Europe Ltd,81798," 6,058.82 ",2
DCMS,ODA,25-Jun-2013,Tier 1 Contractors,Village Infra Retrofit - LL procured services,Lend Lease Europe Ltd,81799," 716,391.96 ",1
DCMS,ODA,25-Jun-2013,Tier 1 Contractors,Village Infra Retrofit - LL procured services,Lend Lease Europe Ltd,81799," 51,445.08 ",2
DCMS,ODA,25-Jun-2013,VAT - Irrecoverable,Current Liabilities under 1 Year - VAT Control,Lend Lease Europe Ltd,81799," 10,289.02 ",4
DCMS,ODA,25-Jun-2013,Tier 1 Contractors,Village Retrofit - LL Procured Services,Lend Lease Europe Ltd,81802," 8,749,782.40 ",1
DCMS,ODA,25-Jun-2013,Tier 1 Contractors,Village Retrofit - LL Procured Services,Lend Lease Europe Ltd,81802," 178,566.99 ",2
DCMS,ODA,25-Jun-2013,VAT - Irrecoverable,Current Liabilities under 1 Year - VAT Control,Lend Lease Europe Ltd,81802," 35,713.40 ",4
DCMS,ODA,25-Jun-2013,Tier 1 Contractors,Community Projects Retrofit - Academy procured services,Lend Lease Europe Ltd,81804," 994,454.31 ",1
DCMS,ODA,25-Jun-2013,VAT - Irrecoverable,Current Liabilities under 1 Year - VAT Control,Lend Lease Europe Ltd,81804," 198,890.86 ",2
DCMS,ODA,25-Jun-2013,Tier 1 Contractors,Village Vertical Development,Lend Lease Europe Ltd,81805," 452,631.44 ",1
DCMS,ODA,25-Jun-2013,Tier 1 Contractors,Village Vertical Development,Lend Lease Europe Ltd,81805," 9,237.38 ",2
DCMS,ODA,25-Jun-2013,VAT - Irrecoverable,Current Liabilities under 1 Year - VAT Control,Lend Lease Europe Ltd,81805," 1,847.48 ",4
DCMS,ODA,25-Jun-2013,Tier 1 Contractors,Zones 2-7 Infrastructure,Lend Lease Europe Ltd,81807," 296,015.90 ",1
DCMS,ODA,25-Jun-2013,Tier 1 Contractors,Zones 2-7 Infrastructure,Lend Lease Europe Ltd,81807," 21,257.30 ",2
DCMS,ODA,25-Jun-2013,VAT - Irrecoverable,Current Liabilities under 1 Year - VAT Control,Lend Lease Europe Ltd,81807," 4,251.46 ",4
DCMS,ODA,25-Jun-2013,Tier 1 Contractors,Village Infra Retrofit - LL procured services,Lend Lease Europe Ltd,81832," 444,829.68 ",1
DCMS,ODA,25-Jun-2013,Tier 1 Contractors,Village Infra Retrofit - LL procured services,Lend Lease Europe Ltd,81832," 31,943.82 ",2
DCMS,ODA,25-Jun-2013,VAT - Irrecoverable,Current Liabilities under 1 Year - VAT Control,Lend Lease Europe Ltd,81832," 6,388.76 ",4
DCMS,ODA,25-Jun-2013,Tier 1 Contractors,Village Retrofit - LL Procured Services,Lend Lease Europe Ltd,81834," 72,981.13 ",1
DCMS,ODA,25-Jun-2013,Tier 1 Contractors,Village Retrofit - LL Procured Services,Lend Lease Europe Ltd,81834," 1,489.41 ",2
DCMS,ODA,25-Jun-2013,VAT - Irrecoverable,Current Liabilities under 1 Year - VAT Control,Lend Lease Europe Ltd,81834, 297.88 ,4
DCMS,ODA,25-Jun-2013,Tier 1 Contractors,Village Retrofit - LL Procured Services,Lend Lease Europe Ltd,81842," 169,704.00 ",1
DCMS,ODA,25-Jun-2013,VAT - Irrecoverable,Current Liabilities under 1 Year - VAT Control,Lend Lease Europe Ltd,81842," 33,940.80 ",2
DCMS,ODA,25-Jun-2013,Tier 1 Contractors,Village Retrofit - LL Procured Services,Lend Lease Europe Ltd,81844," 423,744.57 ",1
DCMS,ODA,25-Jun-2013,Tier 1 Contractors,Village Retrofit - LL Procured Services,Lend Lease Europe Ltd,81844," 8,647.85 ",2
DCMS,ODA,25-Jun-2013,VAT - Irrecoverable,Current Liabilities under 1 Year - VAT Control,Lend Lease Europe Ltd,81844," 1,729.57 ",4
DCMS,ODA,25-Jun-2013,Tier 1 Contractors,Village Retrofit - LL Procured Services,Lend Lease Europe Ltd,81845," 208,360.84 ",1
DCMS,ODA,25-Jun-2013,Tier 1 Contractors,Village Retrofit - LL Procured Services,Lend Lease Europe Ltd,81845," 4,252.26 ",2
DCMS,ODA,25-Jun-2013,VAT - Irrecoverable,Current Liabilities under 1 Year - VAT Control,Lend Lease Europe Ltd,81845, 850.45 ,4
DCMS,ODA,25-Jun-2013,Tier 1 Contractors,Village Retrofit - LL Procured Services,Lend Lease Europe Ltd,81846," 161,002.95 ",1
DCMS,ODA,25-Jun-2013,Tier 1 Contractors,Village Retrofit - LL Procured Services,Lend Lease Europe Ltd,81846," 3,285.77 ",2
DCMS,ODA,25-Jun-2013,VAT - Irrecoverable,Current Liabilities under 1 Year - VAT Control,Lend Lease Europe Ltd,81846, 657.15 ,4
DCMS,ODA,25-Jun-2013,Tier 1 Contractors,Community Projects Retrofit - Academy procured services,Lend Lease Europe Ltd,81847," 28,601.12 ",1
DCMS,ODA,25-Jun-2013,Tier 1 Contractors,Community Projects Retrofit - Academy procured services,Lend Lease Europe Ltd,81847," 2,053.89 ",2
DCMS,ODA,25-Jun-2013,VAT - Irrecoverable,Current Liabilities under 1 Year - VAT Control,Lend Lease Europe Ltd,81847, 410.78 ,4
DCMS,ODA,25-Jun-2013,Tier 1 Contractors,Village Retrofit - LL Procured Services,Lend Lease Europe Ltd,81848," 1,017,968.14 ",1
DCMS,ODA,25-Jun-2013,Tier 1 Contractors,Village Retrofit - LL Procured Services,Lend Lease Europe Ltd,81848," 20,774.86 ",2
DCMS,ODA,25-Jun-2013,VAT - Irrecoverable,Current Liabilities under 1 Year - VAT Control,Lend Lease Europe Ltd,81848," 4,154.97 ",4
DCMS,ODA,25-Jun-2013,Tier 1 Contractors,Village Retrofit - LL Procured Services,Lend Lease Europe Ltd,81849," 40,835.62 ",1
DCMS,ODA,25-Jun-2013,Tier 1 Contractors,Village Retrofit - LL Procured Services,Lend Lease Europe Ltd,81849, 833.38 ,2
DCMS,ODA,25-Jun-2013,VAT - Irrecoverable,Current Liabilities under 1 Year - VAT Control,Lend Lease Europe Ltd,81849, 166.68 ,4
DCMS,ODA,25-Jun-2013,Tier 1 Contractors,Village Infra Retrofit - LL procured services,Lend Lease Europe Ltd,81850," 99,842.20 ",1
DCMS,ODA,25-Jun-2013,Tier 1 Contractors,Village Infra Retrofit - LL procured services,Lend Lease Europe Ltd,81850," 7,169.80 ",2
DCMS,ODA,25-Jun-2013,Tier 1 Contractors,Village Infra Retrofit - LL procured services,Lend Lease Europe Ltd,81850," (7,169.80)",5
DCMS,ODA,25-Jun-2013,Tier 1 Contractors,Village Infra Retrofit - LL procured services,Lend Lease Europe Ltd,81850," 7,169.80 ",6
DCMS,ODA,25-Jun-2013,VAT - Irrecoverable,Current Liabilities under 1 Year - VAT Control,Lend Lease Europe Ltd,81850," 1,433.96 ",8
DCMS,ODA,29-Jun-2013,Tier 1 Contractors,Village Vertical Development,Lend Lease Europe Ltd,81797," 824,166.52 ",1
DCMS,ODA,29-Jun-2013,Tier 1 Contractors,Village Vertical Development,Lend Lease Europe Ltd,81797," 16,819.72 ",2
DCMS,ODA,29-Jun-2013,VAT - Irrecoverable,Current Liabilities under 1 Year - VAT Control,Lend Lease Europe Ltd,81797," 3,363.94 ",4
DCMS,ODA,29-Jun-2013,Construction contractor,Broxbourne Construction,Morrison Construction Ltd,81853," 829,176.51 ",1
DCMS,ODA,29-Jun-2013,VAT - Irrecoverable,Current Liabilities under 1 Year - VAT Control,Morrison Construction Ltd,81853," 165,835.30 ",2
DCMS,ODA,29-Jun-2013,Tier 1 Contractors,Village Vertical Development,Lend Lease Europe Ltd,81924," 756,435.75 ",1
DCMS,ODA,29-Jun-2013,Tier 1 Contractors,Village Vertical Development,Lend Lease Europe Ltd,81924," 15,437.46 ",2
DCMS,ODA,29-Jun-2013,VAT - Irrecoverable,Current Liabilities under 1 Year - VAT Control,Lend Lease Europe Ltd,81924," 3,087.49 ",4
,,,,,,, 32332161.11 ,
